lending/lending_fUSD_20251125
["ID","MTS","AMOUNT","RATE_DAILY","PERIOD"]
[394865290,1764029704404,-155.31607679,0.00014573,2]
[394865292,1764029708130,177.264664,7.945e-05,2]
[394865293,1764029708161,7426.531059,7.945e-05,2]
[394865294,1764029708225,-288.71832321,0.00014573,2]
[394865295,1764029708250,-300.0,0.00014698,2]
[394865296,1764029708280,-411.28167679,0.00014698,2]
[394865300,1764029721926,-788.71832321,0.00014698,2]
[394865301,1764029721953,-150.0,0.00014698,2]
[394865302,1764029721984,-499.99,0.00014699,2]
[394865303,1764029722018,-500.0,0.00014699,2]
[394865304,1764029722049,-500.0,0.00014699,2]
[394865305,1764029722084,-500.0,0.00014699,2]
[394865306,1764029722115,-500.0,0.00014699,2]
[394865307,1764029722144,-500.0,0.00014699,2]
[394865308,1764029722175,-500.0,0.00014699,2]
[394865309,1764029722207,-500.0,0.00014699,2]
[394865310,1764029722234,-500.0,0.00014699,2]
[394865311,1764029722266,-193.38657679,0.00014699,2]
[394865316,1764029732269,-306.61342321,0.00014699,2]
[394865317,1764029732292,-500.0,0.00014699,2]
[394865318,1764029732320,-5066.13866218,0.000147,2]
[394865451,1764030206492,-194.33446608,0.000145,2]
[394865452,1764030206525,-631.466576,0.00014585,2]
[394865453,1764030206561,-300.0,0.00014599,2]
[394865454,1764030206593,-509.0,0.00014599,2]
[394865455,1764030206631,-1098.31301584,0.000146,2]
[394865457,1764030209394,-4533.78188416,0.000146,2]
[394865458,1764030215498,-1000.0,0.000146,2]
[394865459,1764030215530,-212.12966822,0.000146,2]
[394865460,1764030215561,-500.0,0.00014673,2]
[394865461,1764030215595,-500.0,0.00014673,2]
[394865462,1764030215626,-500.0,0.00014673,2]
[394865463,1764030215659,-500.0,0.00014673,2]
[394865464,1764030215691,-500.0,0.00014673,2]
[394865465,1764030215724,-150.0,0.00014698,2]
[394865466,1764030215756,-500.0,0.00014699,2]
[394865467,1764030215787,-500.0,0.00014699,2]
[394865470,1764030319511,2999.99671501,9e-05,2]
[394865471,1764030344246,-178.4272586,0.00014598,2]
[394865472,1764030344281,-2500.0,0.000146,2]
[394865473,1764030344318,-150.0,0.00014698,2]
[394865474,1764030344355,-300.0,0.00014698,2]
[394865475,1764030344389,-300.0,0.00014698,2]
[394865476,1764030344424,-300.0,0.00014698,2]
[394865477,1764030344459,-820.0,0.00014698,2]
[394865478,1764030344495,-300.0,0.00014698,2]
[394865479,1764030344530,-53.1554828,0.00014699,2]
[394865480,1764030350037,-196.8445172,0.00014699,2]
[394865481,1764030350072,-195.0,0.00014699,2]
[394865482,1764030350105,-500.0,0.00014699,2]
[394865483,1764030350138,-500.0,0.00014699,2]
[394865484,1764030350172,-500.0,0.00014699,2]
[394865485,1764030350205,-500.0,0.00014699,2]
[394865486,1764030350237,-630.9506587,0.00014699,2]
[394865487,1764030350271,-500.0,0.00014699,2]
[394865488,1764030350311,-500.0,0.00014699,2]
[394865489,1764030350530,-500.0,0.00014699,2]
[394865490,1764030350573,-454.4196482,0.00014699,2]
[394865491,1764030356159,-45.5803518,0.00014699,2]
[394865492,1764030356199,-500.0,0.00014699,2]
[394865493,1764030356238,-500.0,0.00014699,2]
[394865494,1764030356277,-500.0,0.00014699,2]
[394865495,1764030356316,-500.0,0.00014699,2]
[394865496,1764030356356,-500.0,0.00014699,2]
[394865497,1764030356396,-500.0,0.00014699,2]
[394865498,1764030356436,-500.0,0.00014699,2]
[394865499,1764030356479,-500.0,0.00014699,2]
[394865500,1764030356522,-500.0,0.00014699,2]
[394865501,1764030356562,-408.8492964,0.00014699,2]
[394865502,1764030359990,10000.01,8e-05,2]
[394865503,1764030360018,10000.01,8e-05,2]
[394865504,1764030360046,3435.97339661,8e-05,2]
[394865505,1764030363732,6564.03660339,0.00011,2]
[394865506,1764030363762,1511.99004042,0.00011,2]
[394865507,1764030389903,-3435.6324,0.000146,2]
[394865508,1764030389938,-195.0,0.00014613,2]
[394865509,1764030389973,-200.51229195,0.00014626,2]
[394865510,1764030390008,-601.70480856,0.00014699,2]
[394865511,1764030390049,-91.1507036,0.00014699,2]
[394865512,1764030390091,-452.00959178,0.00014699,2]
[394865513,1764030390293,-47.99040822,0.00014699,2]
[394865514,1764030390346,-500.0,0.00014699,2]
[394865515,1764030390389,-500.0,0.00014699,2]
[394865516,1764030390430,-500.0,0.00014699,2]
[394865517,1764030390475,-500.0,0.00014699,2]
[394865518,1764030390520,-500.0,0.00014699,2]
[394865519,1764030390563,-500.0,0.00014699,2]
[394865520,1764030390605,-500.0,0.00014699,2]
[394865521,1764030390646,-500.0,0.00014699,2]
[394865522,1764030390692,-500.0,0.00014699,2]
[394865523,1764030390734,-404.02918356,0.00014699,2]
[394865524,1764030398882,-95.97081644,0.00014699,2]
[394865525,1764030398927,-500.0,0.00014699,2]
[394865526,1764030398972,-500.0,0.00014699,2]
[394865527,1764030399017,-500.0,0.00014699,2]
[394865528,1764030399061,-500.0,0.00014699,2]
[394865529,1764030399103,-500.0,0.00014699,2]
[394865530,1764030399146,-500.0,0.00014699,2]
[394865531,1764030399194,-500.0,0.00014699,2]
[394865532,1764030399237,-500.0,0.00014699,2]
[394865533,1764030399285,-500.0,0.00014699,2]
[394865534,1764030399327,-308.06836712,0.00014699,2]
[394865535,1764030401940,-191.93163288,0.00014699,2]
[394865536,1764030401987,-500.0,0.00014699,2]
[394865537,1764030402031,-500.0,0.00014699,2]
[394865538,1764030402073,-500.0,0.00014699,2]
[394865539,1764030402116,-500.0,0.00014699,2]
[394865540,1764030402160,-500.0,0.00014699,2]
[394865541,1764030402201,-500.0,0.00014699,2]
[394865542,1764030402243,-500.0,0.00014699,2]
[394865543,1764030402283,-500.0,0.00014699,2]
[394865544,1764030402326,-500.0,0.00014699,2]
[394865545,1764030402367,-116.14673424,0.00014699,2]
[394865546,1764030407694,158.55,0.00019178,30]
[394865548,1764030431986,5311.04400855,0.0001305,2]
[394865550,1764030462992,4398.39288403,0.00013,2]
[394865552,1764030481594,-2500.0,0.000146,2]
[394865553,1764030481632,-500.0,0.00014673,2]
[394865554,1764030481666,-150.0,0.00014698,2]
[394865555,1764030481699,-1200.0,0.00014698,2]
[394865556,1764030481740,-383.85326576,0.00014699,2]
[394865557,1764030481781,-32.30346848,0.00014699,2]
[394865558,1764030482642,2578.08169637,0.0001439,2]
[394865559,1764030485553,635.66047941,0.000135,2]
[394865560,1764030487538,-467.69653152,0.00014699,2]
[394865561,1764030487578,-500.0,0.00014699,2]
[394865562,1764030487619,-500.0,0.00014699,2]
[394865563,1764030487659,-500.0,0.00014699,2]
[394865564,1764030487699,-500.0,0.00014699,2]
[394865565,1764030487738,-500.0,0.00014699,2]
[394865566,1764030487778,-500.0,0.00014699,2]
[394865567,1764030487818,-500.0,0.00014699,2]
[394865568,1764030487858,-500.0,0.00014699,2]
[394865569,1764030487900,-500.0,0.00014699,2]
[394865571,1764030494432,389.1789499,7.888e-05,2]
[394865572,1764030500821,222.54961791,0.0001,2]
[394865573,1764030506828,266.6048547,0.000107,2]
[394865574,1764030506892,2262.31838109,0.0001421,7]
[394865575,1764030528240,-5191.93163288,0.00014675,2]
[394865576,1764030528299,-10000.01,0.00014675,2]
[394865577,1764030528318,-10000.01,0.00014675,2]
[394865578,1764030528359,-10000.01,0.00014675,2]
[394865579,1764030528489,-10000.01,0.00014675,2]
[394865580,1764030528611,-10000.01,0.00014675,2]
[394865581,1764030528732,-10000.01,0.00014675,2]
[394865582,1764030530394,-728.7452,0.000146,2]
[394865583,1764030530442,-8542.5196,0.00014675,2]
[394865584,1764030530538,-1947.59489402,0.00014675,2]
[394865585,1764030530575,-1362.84143866,0.00014675,2]
[394865586,1764030530619,-3379.13733464,0.00014675,2]
[394865587,1764030531175,-477.88929844,0.00014699,2]
[394865588,1764030531215,-500.0,0.00014699,2]
[394865589,1764030531254,-500.0,0.00014699,2]
[394865590,1764030531310,-500.0,0.00014699,2]
[394865591,1764030531355,-500.0,0.00014699,2]
[394865592,1764030531397,-500.0,0.00014699,2]
[394865593,1764030531439,-500.0,0.00014699,2]
[394865594,1764030531480,-620.07841676,0.00014699,2]
[394865595,1764030531520,-500.0,0.00014699,2]
[394865596,1764030531561,-304.0745696,0.00014699,2]
[394865597,1764030531752,-195.9254304,0.00014699,2]
[394865598,1764030533500,-500.0,0.00014699,2]
[394865599,1764030533545,-500.0,0.00014699,2]
[394865600,1764030533586,-300.00000001,0.00014699,2]
[394865601,1764030533623,-500.0,0.00014699,2]
[394865602,1764030533657,-500.0,0.00014699,2]
[394865603,1764030533692,-240.56085358,0.00014699,2]
[394865604,1764030533724,-342.27425818,0.00014699,2]
[394865605,1764030533765,-500.0,0.00014699,2]
[394865606,1764030533806,-500.0,0.00014699,2]
[394865607,1764030533849,-500.0,0.00014699,2]
[394865608,1764030533890,-500.0,0.00014699,2]
[394865609,1764030534009,-500.0,0.00014699,2]
[394865610,1764030534050,-500.0,0.00014699,2]
[394865611,1764030534093,-500.0,0.00014699,2]
[394865612,1764030534134,-283.59580992,0.00014699,2]
[394865613,1764030534169,-501.86314705,0.00014699,2]
[394865614,1764030534203,-262.1295336,0.00014699,2]
[394865615,1764030534239,-500.0,0.00014699,2]
[394865616,1764030534278,-500.0,0.00014699,2]
[394865617,1764030534316,-500.0,0.00014699,2]
[394865618,1764030534352,-201.64841184,0.00014699,2]
[394865619,1764030534384,-500.0,0.00014699,2]
[394865620,1764030534514,-626.17536977,0.00014699,2]
[394865621,1764030535027,-109.70060187,0.000147,2]
[394865622,1764030535048,-626.17536977,0.000147,2]
[394865623,1764030535099,-8747.65926046,0.000147,2]
[394865624,1764030535121,-10000.01,0.000147,2]
[394865625,1764030535140,-10000.01,0.000147,2]
[394865626,1764030535162,-10000.01,0.000147,2]
[394865627,1764030535181,-10000.01,0.000147,2]
[394865640,1764030632214,-1053.03409589,0.00014599,2]
[394865641,1764030632227,-146.96590411,0.00014599,2]
[394865642,1764030632239,-300.0,0.00014599,2]
[394865643,1764030632248,-150.0,0.00014599,2]
[394865644,1764030632258,-208.0,0.00014599,2]
[394865645,1764030632267,-139.16846629,0.000146,2]
[394865646,1764030632280,-559.2491887,0.000146,2]
[394865647,1764030632292,-357.41173712,0.000146,2]
[394865648,1764030632305,-464975.47705068,0.000146,2]
[394865649,1764030632317,-76859.24621476,0.000146,2]
[394865650,1764030632330,-103011.86892127,0.000146,2]
[394865651,1764030632342,-78119.79699,0.000146,2]
[394865652,1764030632358,-781.466576,0.000146,2]
[394865653,1764030632370,-531.69569396,0.000146,2]
[394865654,1764030632382,-2969.47617124,0.000146,2]
[394865655,1764030632393,-544.02,0.000146,2]
[394865656,1764030632431,-1454.2555863,0.000146,2]
[394865657,1764030632446,-361.06366218,0.000146,2]
[394865658,1764030632486,-715.39403671,0.000146,2]
[394865659,1764030638200,-441.0,0.000146,2]
[394865660,1764030638371,-28179.40970479,0.000146,2]
[394865661,1764030638381,-157.32118517,0.0001463,2]
[394865662,1764030638391,-1358.12269964,0.0001463,2]
[394865663,1764030638400,-163.43,0.0001473,2]
[394865664,1764030638411,-198.33850584,0.00014913,2]
[394865665,1764030638423,-766.16259922,0.00015,2]
[394865666,1764030638434,-311936.23940901,0.00015,4]
[394865667,1764030638444,-500.0,0.00015221,2]
[394865668,1764030638454,-7669.14195142,0.000154,2]
[394865669,1764030638464,-6635.06778312,0.00015614,2]
[394865670,1764030638474,-219.0,0.00015616,2]
[394865671,1764030638484,-471.0,0.00015616,2]
[394865672,1764030638494,-610.0,0.00015717,2]
[394865673,1764030638504,-255.0,0.00015723,2]
[394865674,1764030638514,-1497.4,0.00015782,2]
[394865675,1764030638524,-7124.56651506,0.000159,2]
[394865677,1764030638534,-368.5139526,0.00015924,2]
[394865678,1764030638543,-500.0,0.00015929,2]
[394865680,1764030638553,-500.0,0.00015973,2]
[394865683,1764030638563,-500.0,0.00015973,2]
[394865685,1764030638575,-501.01450029,0.00015973,2]
[394865687,1764030638584,-215.51575131,0.00015973,2]
[394865689,1764030638594,-378.0,0.00015984,2]
[394865690,1764030638604,-176635.79515049,0.00016,4]
[394865847,1764030640339,-4950.42432869,0.00016,4]
[394865870,1764030640546,-287322.33288342,0.00016,4]
[394865872,1764030640556,-500.0,0.00016024,2]
[394865874,1764030640569,-195.0,0.00016049,2]
[394865876,1764030640582,-193.0,0.00016059,2]
[394865879,1764030640592,-250.0,0.00016059,2]
[394865880,1764030640602,-300.0,0.00016059,2]
[394865882,1764030640614,-1619.0,0.00016059,2]
[394865885,1764030640625,-300.0,0.0001606,2]
[394865886,1764030640634,-383.2028421,0.0001606,2]
[394865888,1764030640645,-195.0,0.0001606,2]
[394865890,1764030640654,-195.0,0.0001606,2]
[394865892,1764030640663,-150.0,0.0001606,2]
[394865894,1764030640673,-150.0,0.0001606,2]
[394865896,1764030640682,-150.0,0.0001606,2]
[394865898,1764030640692,-150.0,0.0001606,2]
[394865900,1764030640701,-195.0,0.00016169,2]
[394865903,1764030640711,-250.0,0.0001617,2]
[394865905,1764030640720,-8089.48,0.0001618,2]
[394865907,1764030640729,-150.0,0.00016197,2]
[394865909,1764030640739,-150.0,0.00016197,2]
[394865910,1764030640749,-5000.00786271,0.000162,5]
[394865913,1764030640758,-152.85,0.00016205,2]
[394865915,1764030640768,-3220.45988941,0.000163,2]
[394865917,1764030640778,-200.0,0.00016334,2]
[394865918,1764030640787,-200.0,0.00016334,2]
[394865921,1764030640797,-200.0,0.0001634,2]
[394865923,1764030640810,-318.17088913,0.000164,2]
[394865925,1764030640820,-604.95520978,0.00016438,2]
[394865927,1764030640829,-1058.0784831,0.00016534,2]
[394865929,1764030640839,-16886.9604604,0.00016544,2]
[394865931,1764030640848,-433.0,0.00016935,2]
[394865933,1764030640857,-368.51395258,0.00016944,2]
[394865935,1764030640866,-236.0892213,0.00016948,2]
[394865937,1764030640875,-3767.9901919,0.00016961,2]
[394865939,1764030640885,-5872.75208539,0.00017,2]
[394865941,1764030640894,-250.0,0.00017,2]
[394865943,1764030640904,-300.0,0.00017224,2]
[394865946,1764030640913,-168.0,0.00017454,2]
[394865948,1764030640923,-168.0,0.0001748,2]
[394865950,1764030640933,-168.0,0.00017487,2]
[394865952,1764030640943,-168.0,0.00017492,2]
[394865954,1764030640952,-168.0,0.00017579,2]
[394865956,1764030640961,-168.0,0.00017736,2]
[394865957,1764030640970,-150.0,0.00017808,2]
[394865959,1764030640980,-168.0,0.000179,2]
[394865962,1764030640989,-3628.6852,0.000179,2]
[394865964,1764030640999,-168.0,0.00017928,2]
[394865965,1764030641008,-150.0,0.00017945,2]
[394865967,1764030641018,-368.51395258,0.00017964,2]
[394865969,1764030641028,-500.0,0.00017973,2]
[394865971,1764030641037,-500.0,0.00017973,2]
[394865973,1764030641046,-500.0,0.00017973,2]
[394865975,1764030641056,-501.89985853,0.00017973,2]
[394865977,1764030641065,-500.0,0.00017973,2]
[394865979,1764030641075,-501.0431648,0.00017973,2]
[394865981,1764030641084,-507.15925686,0.00017973,2]
[394865983,1764030641093,-323.86150375,0.00017973,2]
[394865985,1764030641102,-500.0,0.00017973,2]
[394865987,1764030641111,-500.0,0.00017973,2]
[394865989,1764030641120,-166.66,0.00017996,2]
[394865991,1764030641131,-448.09875109,0.00017999,2]
[394865993,1764030641140,-251.51199175,0.00017999,2]
[394865995,1764030641149,-253.88837861,0.00017999,2]
[394865997,1764030641158,-500.0,0.00017999,2]
[394865999,1764030641167,-241.88106985,0.00017999,2]
[394866001,1764030641175,-92280.17666992,0.00018,2]
[394866019,1764030641340,-1.7e-07,0.00018,2]
[394866129,1764030646540,-1123.249965,0.00018,2]
[394866131,1764030646551,-4407.05,0.00018,2]
[394866133,1764030646563,-1181.39263457,0.00018,2]
[394866201,1764030648472,203.42561611,0.0001453,2]
[394866223,1764030684081,422.22313739,0.00014599,2]
[394866225,1764030749105,202.48,0.00014,2]
[394866232,1764030898849,174.73664609,0.00013,2]
[394866236,1764031044087,572.43,0.00013699,2]
[394866254,1764031485081,-191.11960204,0.00014597,2]
[394866255,1764031500068,-164.06876657,0.00014598,2]
[394866256,1764031500096,-208.0,0.00014598,2]
[394866257,1764031515382,-151.0,0.00014691,2]
[394866258,1764031530708,-300.0,0.00014698,2]
[394866259,1764031530737,-1200.0,0.00014698,2]
[394866260,1764031530766,-300.0,0.00014698,2]
[394866261,1764031530794,-252.0,0.00014698,2]
[394866264,1764031534540,191.11960204,0.00014598,2]
[394866266,1764031545986,-500.0,0.00014699,2]
[394866267,1764031546017,-500.0,0.00014699,2]
[394866268,1764031546047,-500.0,0.00014699,2]
[394866269,1764031546076,-1200.0,0.00014699,2]
[394866271,1764031561396,-500.0,0.000147,2]
[394866272,1764031561422,-500.0,0.000147,2]
[394866280,1764031733212,1922.89,8.038e-05,2]
[394866281,1764031733430,1922.89,8.461e-05,2]
[394866282,1764031733633,1922.89,8.884e-05,2]
[394866283,1764031733835,1922.89,9.307e-05,2]
[394866284,1764031734046,1922.89,9.73e-05,2]
[394866285,1764031734264,385.56,0.00010153,2]
[394866286,1764031734286,1537.33,0.00010153,2]
[394866287,1764031734452,1922.89,0.00010576,2]
[394866288,1764031734664,1922.89,0.00010999,2]
[394866289,1764031735068,1922.89,0.00011422,2]
[394866290,1764031735280,1922.89,0.00011845,2]
[394866291,1764031735488,771.12,0.00012268,2]
[394866292,1764031735511,1151.77,0.00012268,2]
[394866293,1764031735686,1922.89,0.00012691,2]
[394866294,1764031736081,1922.89,0.00013114,2]
[394866295,1764031736290,1922.89,0.00013537,2]
[394866296,1764031736486,1922.89,0.0001396,2]
[394866297,1764031736713,1156.68,0.00014383,2]
[394866298,1764031736735,766.21,0.00014383,2]
[394866299,1764031736907,1922.89,0.00014806,2]
[394866301,1764031828003,161.09,0.00012807,2]
[394866302,1764031828230,161.09,0.00014941,2]
[394866311,1764031832388,-1015.72168011,0.0001523,2]
[394866312,1764031832400,-416.20303398,0.0001523,2]
[394866313,1764031832411,-446.99893371,0.0001523,2]
[394866314,1764031832422,-43.9663522,0.0001523,2]
[394866315,1764031832432,-215.0,0.0001523,2]
[394866316,1764031832453,-195.0,0.0001525,2]
[394866317,1764031832470,-1922.89,0.00015653,2]
[394866318,1764031832479,-300.0,0.00015799,2]
[394866319,1764031832489,-1200.0,0.00015799,2]
[394866320,1764031832499,-300.0,0.00015799,2]
[394866321,1764031832508,-184.79730938,0.000158,2]
[394866322,1764031832520,-999.0,0.00015932,3]
[394866323,1764031832530,-1922.89,0.00016076,2]
[394866324,1764031832541,-1852.42,0.00016111,2]
[394866325,1764031832553,-151.0,0.00016125,2]
[394866326,1764031832564,-151.0,0.00016125,2]
[394866327,1764031832574,-151.0,0.00016125,2]
[394866328,1764031832584,-151.0,0.00016125,2]
[394866329,1764031832594,-151.0,0.00016125,2]
[394866330,1764031832604,-151.0,0.00016125,2]
[394866331,1764031832613,-151.0,0.00016125,2]
[394866332,1764031832622,-151.0,0.00016125,2]
[394866333,1764031832632,-130.07247773,0.00016125,2]
[394866334,1764031832644,-167.63233083,0.00016125,2]
[394866335,1764031832653,-550.0,0.00016133,2]
[394866338,1764031832666,-18169.99,0.00016134,2]
[394866340,1764031832675,-195.0,0.0001617,2]
[394866343,1764031832685,-7127.48,0.00016191,2]
[394866345,1764031832694,-172.5,0.00016205,2]
[394866347,1764031832704,-480.99,0.00016406,2]
[394866351,1764031832713,-207.56,0.00016416,2]
[394866354,1764031832723,-3430.19,0.00016438,2]
[394866355,1764031832732,-922.41612027,0.00016438,2]
[394866358,1764031832741,-150.0,0.00016497,2]
[394866360,1764031832751,-191.01,0.00016712,2]
[394866361,1764031832760,-250.0,0.00016752,2]
[394866362,1764031832770,-300.0,0.00016775,2]
[394866363,1764031832779,-300.0,0.00016775,2]
[394866364,1764031832788,-300.0,0.00016775,2]
[394866365,1764031832798,-300.0,0.00016775,2]
[394866366,1764031832807,-300.0,0.00016775,2]
[394866367,1764031832817,-285.5329439,0.00016775,3]
[394866368,1764031832826,-7420.72,0.00016844,2]
[394866369,1764031832836,-1000.0,0.00016903,2]
[394866370,1764031832845,-150.0,0.00016912,2]
[394866371,1764031832855,-412.0,0.00017,2]
[394866372,1764031832868,-161.09,0.00017076,2]
[394866373,1764031832877,-3066.47942512,0.00017124,2]
[394866374,1764031832889,-109.16057488,0.00017124,2]
[394866375,1764031832898,-172.0,0.00017247,2]
[394866376,1764031832907,-54.18896012,0.00017364,2]
[394866377,1764031832919,-560.12000014,0.00017364,2]
[394866378,1764031832930,-364.74926,0.00017364,2]
[394866379,1764031832942,-700.94177974,0.00017364,2]
[394866381,1764031832951,-133.84422026,0.00017552,2]
[394866384,1764031832962,-32.81577974,0.00017552,2]
[394866385,1764031832971,-168.0,0.00017725,2]
[394866386,1764031832980,-221.68667467,0.000178,2]
[394866418,1764031838320,-778.31332533,0.000178,2]
[394866420,1764031838330,-2263.6074645,0.000178,2]
[394866421,1764031838339,-3300.25189832,0.000178,2]
[394866422,1764031838349,-2500.0,0.000178,2]
[394866423,1764031838359,-158.47400121,0.000178,2]
[394866424,1764031838368,-267.70638494,0.000178,2]
[394866425,1764031838378,-1188.35736222,0.000178,2]
[394866426,1764031838387,-3628.6852,0.000178,2]
[394866427,1764031838396,-226.0,0.00017813,2]
[394866428,1764031838406,-600.94615468,0.0001783,2]
[394866429,1764031838437,-686.34435635,0.0001783,2]
[394866430,1764031838451,-30632.49204456,0.0001783,2]
[394866431,1764031838460,-267.70638493,0.0001785,2]
[394866432,1764031838470,-500.0,0.00017873,2]
[394866433,1764031838480,-500.0,0.00017873,2]
[394866434,1764031838490,-500.0,0.00017873,2]
[394866435,1764031838500,-479.34088009,0.00017873,2]
[394866436,1764031838510,-159.93815277,0.00017873,2]
[394866437,1764031838520,-500.0,0.00017873,2]
[394866438,1764031838530,-500.0,0.00017873,2]
[394866439,1764031838541,-500.0,0.00017873,2]
[394866440,1764031838550,-500.0,0.00017873,2]
[394866441,1764031838560,-232.07,0.0001789,3]
[394866442,1764031838570,-419.15882363,0.00017899,2]
[394866443,1764031838579,-500.0,0.00017899,2]
[394866444,1764031838590,-177.71813647,0.00017899,2]
[394866445,1764031838600,-500.0,0.00017899,2]
[394866446,1764031838610,-257.88162096,0.00017899,2]
[394866447,1764031838619,-500.0,0.00017899,2]
[394866448,1764031838629,-500.0,0.00017899,2]
[394866449,1764031838639,-500.0,0.00017899,2]
[394866451,1764031838648,-320.30677853,0.00017899,2]
[394866453,1764031838657,-262.36450666,0.00017899,2]
[394866455,1764031838667,-500.0,0.00017899,2]
[394866457,1764031838677,-600.18294311,0.00017899,2]
[394866459,1764031838687,-500.0,0.00017899,2]
[394866461,1764031838697,-548.92962927,0.00017899,2]
[394866463,1764031838707,-631.9665273,0.00017899,2]
[394866464,1764031838717,-500.0,0.00017899,2]
[394866466,1764031838727,-500.0,0.00017899,2]
[394866467,1764031838736,-500.0,0.00017899,2]
[394866468,1764031838746,-500.0,0.00017899,2]
[394866469,1764031838755,-500.0,0.00017899,2]
[394866470,1764031838764,-500.0,0.00017899,2]
[394866471,1764031838774,-500.0,0.00017899,2]
[394866472,1764031838783,-236.61789453,0.00017899,2]
[394866473,1764031838792,-500.0,0.00017899,2]
[394866474,1764031838802,-169.14703498,0.00017899,2]
[394866475,1764031838812,-500.0,0.00017899,2]
[394866476,1764031838822,-500.0,0.00017899,2]
[394866477,1764031838832,-500.0,0.00017899,2]
[394866478,1764031838852,-593.32101757,0.00017899,2]
[394866479,1764031838862,-501.51391161,0.00017899,2]
[394866480,1764031838871,-276.6,0.00017899,2]
[394866481,1764031838881,-132255.72946423,0.000179,2]
[394866482,1764031838895,-480.35610043,0.000179,2]
[394866483,1764031838906,-6332.09775466,0.000179,2]
[394866484,1764031838927,-1132.81538968,0.000179,2]
[394866485,1764031838940,-1260.0,0.000179,2]
[394866486,1764031838952,-1118.10003,0.000179,2]
[394866487,1764031840572,-446.79376777,0.000179,2]
[394866488,1764031840731,-8535.0,0.000179,2]
[394866496,1764031844409,-716.41423,0.000179,2]
[394866497,1764031845201,-32363.05183719,0.000179,2]
[394866504,1764031846421,-920.91630338,0.000179,2]
[394866505,1764031846432,-2180.0,0.000179,2]
[394866506,1764031846443,-3112.4,0.000179,2]
[394866507,1764031846475,-1585.57444177,0.000179,2]
[394866508,1764031846743,-355303.50247728,0.000179,2]
[394866539,1764032694157,-250.0,0.00015979,2]
[394866540,1764032694178,-2751.0,0.00016236,2]
[394866541,1764032694199,-179.44152797,0.00016304,2]
[394866542,1764032694219,-250.0,0.00016304,2]
[394866543,1764032694242,-500.0,0.00016373,2]
[394866544,1764032694263,-227.0,0.00016373,2]
[394866545,1764032694284,-601.32,0.00016375,2]
[394866546,1764032694305,-354.34,0.00016387,2]
[394866547,1764032694326,-344.27037229,0.00016578,2]
[394866548,1764032694349,-1500.0,0.0001661,2]
[394866549,1764032694369,-344.27037226,0.0001665,2]
[394866551,1764032719681,200.0,0.00016396,2]
[394866553,1764032722004,298.35772748,0.00016396,2]
[394866581,1764033031585,-150.0,0.00016099,2]
[394866582,1764033031595,-300.0,0.00016185,2]
[394866583,1764033031604,-1200.0,0.00016185,2]
[394866584,1764033031614,-2355.04917776,0.00016186,2]
[394866585,1764033031626,-1871.80772272,0.00016186,2]
[394866586,1764033031638,-20480.16309952,0.00016186,2]
[394866587,1764033031647,-150.0,0.00016197,2]
[394866588,1764033031657,-1301.64227252,0.00016396,2]
[394866589,1764033031667,-300.0,0.00016455,2]
[394866590,1764033031677,-300.0,0.00016455,2]
[394866591,1764033031686,-300.0,0.00016455,2]
[394866592,1764033031695,-300.0,0.00016455,2]